[Event "Early-Titled-Tuesday-Blitz-June-18-2024"]
[Site "Chess.com"]
[Date "2024.06.18"]
[Round "8"]
[White "Iball95"]
[Black "Alexchess1984"]
[Result "1-0"]
[WhiteElo "2824"]
[BlackElo "2555"]
[TimeControl "180+1"]
[EndTime "9:30:58 PDT"]
[Termination "Iball95 won by resignation"]

1. e4 {[%clk 0:03:00.9]} 1... e6 {[%clk 0:02:59.8]} 2. d4 {[%clk 0:03:00.6]}
2... d5 {[%clk 0:03:00.7]} 3. Nc3 {[%clk 0:03:00.8]} 3... Bb4 {[%clk 0:02:59.9]}
4. exd5 {[%clk 0:03:00.5]} 4... exd5 {[%clk 0:02:57.8]} 5. Bd3 {[%clk 0:03:01]}
5... Ne7 {[%clk 0:02:54.6]} 6. Nf3 {[%clk 0:03:01.5]} 6... O-O {[%clk
0:02:53.7]} 7. O-O {[%clk 0:03:02]} 7... Bf5 {[%clk 0:02:51.1]} 8. Bxf5 {[%clk
0:03:02.4]} 8... Nxf5 {[%clk 0:02:49.4]} 9. Qd3 {[%clk 0:03:02.9]} 9... Ne7
{[%clk 0:02:41.4]} 10. Ng5 {[%clk 0:03:02.3]} 10... Ng6 {[%clk 0:02:33.3]} 11.
f4 {[%clk 0:03:02.7]} 11... h6 {[%clk 0:02:27.3]} 12. f5 {[%clk 0:01:40.9]}
12... Nh8 {[%clk 0:01:55.4]} 13. Nh3 {[%clk 0:01:16.4]} 13... f6 {[%clk
0:01:53.6]} 14. Nf4 {[%clk 0:01:15.6]} 14... Bxc3 {[%clk 0:01:43.5]} 15. Ne6
{[%clk 0:01:11.5]} 15... Qd6 {[%clk 0:01:38.2]} 16. Nxf8 {[%clk 0:01:04.7]}
16... Bxd4+ {[%clk 0:01:34.8]} 17. Qxd4 {[%clk 0:01:05.6]} 17... Nc6 {[%clk
0:01:30.4]} 18. Qf4 {[%clk 0:00:53.5]} 18... Qxf4 {[%clk 0:01:08.6]} 19. Bxf4
{[%clk 0:00:54.4]} 19... Rxf8 {[%clk 0:01:07.1]} 20. Bxc7 {[%clk 0:00:54.8]}
20... Rc8 {[%clk 0:01:05.9]} 21. Bg3 {[%clk 0:00:49.7]} 21... Nd4 {[%clk
0:01:04.9]} 22. c3 {[%clk 0:00:49]} 22... Nc2 {[%clk 0:01:02.4]} 23. Rac1 {[%clk
0:00:45.8]} 23... Ne3 {[%clk 0:01:01.1]} 24. Rf3 {[%clk 0:00:45]} 24... Nc4
{[%clk 0:01:00.1]} 25. b3 {[%clk 0:00:33]} 25... Nd2 {[%clk 0:01:00]} 26. Rd3
{[%clk 0:00:32.6]} 26... Ne4 {[%clk 0:00:56.7]} 27. Be1 {[%clk 0:00:25.8]} 27...
Nf7 {[%clk 0:00:53.6]} 28. Rxd5 {[%clk 0:00:26]} 28... Ne5 {[%clk 0:00:52.4]}
29. c4 {[%clk 0:00:24.4]} 29... b5 {[%clk 0:00:48]} 30. c5 {[%clk 0:00:23]}
30... Rc6 {[%clk 0:00:42.3]} 31. b4 {[%clk 0:00:17.9]} 31... Kh7 {[%clk
0:00:40.5]} 32. Bg3 {[%clk 0:00:17.3]} 32... Ng4 {[%clk 0:00:38]} 33. Re1 {[%clk
0:00:16.3]} 33... Nc3 {[%clk 0:00:37.3]} 34. Rd7 {[%clk 0:00:15.9]} 34... h5
{[%clk 0:00:29.3]} 35. Ree7 {[%clk 0:00:16.3]} 35... Kh6 {[%clk 0:00:29.3]} 36.
Rxg7 {[%clk 0:00:16.3]} 36... Ne2+ {[%clk 0:00:27.2]} 37. Kf1 {[%clk 0:00:16.5]}
37... Nxg3+ {[%clk 0:00:25.9]} 38. hxg3 {[%clk 0:00:17.4]} 38... Ne3+ {[%clk
0:00:24.5]} 39. Kf2 {[%clk 0:00:15.9]} 39... Nxf5 {[%clk 0:00:25.4]} 40. Rh7+
{[%clk 0:00:14.6]} 40... Kg6 {[%clk 0:00:25.9]} 41. Rh8 {[%clk 0:00:13.7]} 41...
Ra6 {[%clk 0:00:25.6]} 42. Rd2 {[%clk 0:00:12.8]} 42... Ra3 {[%clk 0:00:24.3]}
43. Rg8+ {[%clk 0:00:13.2]} 43... Kh6 {[%clk 0:00:24]} 44. Rgd8 {[%clk
0:00:11.2]} 44... Ne3 {[%clk 0:00:24.1]} 45. R8d3 {[%clk 0:00:10.1]} 45... Ng4+
{[%clk 0:00:24.4]} 46. Ke2 {[%clk 0:00:10.3]} 46... Ra4 {[%clk 0:00:25.2]} 47.
a3 {[%clk 0:00:09.5]} 47... a5 {[%clk 0:00:24.6]} 48. Rb2 {[%clk 0:00:07.3]}
48... axb4 {[%clk 0:00:24.6]} 49. axb4 {[%clk 0:00:08.2]} 49... Ra1 {[%clk
0:00:24.9]} 50. Rc3 {[%clk 0:00:07.4]} 50... Rg1 {[%clk 0:00:25.3]} 51. Kf3
{[%clk 0:00:07]} 51... Rf1+ {[%clk 0:00:25.1]} 52. Ke4 {[%clk 0:00:07.4]} 52...
Re1+ {[%clk 0:00:25.2]} 53. Kd5 {[%clk 0:00:07.4]} 53... Ne3+ {[%clk 0:00:24.3]}
54. Kc6 {[%clk 0:00:06.8]} 54... Nc4 {[%clk 0:00:24.4]} 55. Rxc4 {[%clk
0:00:07]} 55... bxc4 {[%clk 0:00:24.5]} 56. Rc2 {[%clk 0:00:07.5]} 56... Re4
{[%clk 0:00:23.7]} 57. b5 {[%clk 0:00:07.6]} 57... c3 {[%clk 0:00:24.1]} 58. b6
{[%clk 0:00:07.4]} 58... Re2 {[%clk 0:00:24.7]} 59. Rxe2 {[%clk 0:00:06.6]}
59... c2 {[%clk 0:00:24.7]} 60. Rxc2 {[%clk 0:00:07.5]} 1-0

[Event "Early-Titled-Tuesday-Blitz-June-18-2024"]
[Site "Chess.com"]
[Date "2024.06.18"]
[Round "8"]
[White "KevinGeorgeMicheal"]
[Black "Hirna2005"]
[Result "1-0"]
[WhiteElo "2474"]
[BlackElo "2288"]
[TimeControl "180+1"]
[EndTime "9:30:59 PDT"]
[Termination "KevinGeorgeMicheal won on time"]

1. e4 {[%clk 0:03:00.9]} 1... g6 {[%clk 0:03:00.6]} 2. d4 {[%clk 0:02:53.8]}
2... Bg7 {[%clk 0:03:01.2]} 3. Nf3 {[%clk 0:02:53.8]} 3... d6 {[%clk 0:03:01.7]}
4. Bc4 {[%clk 0:02:53.5]} 4... Nf6 {[%clk 0:03:01.1]} 5. Qe2 {[%clk 0:02:53.4]}
5... O-O {[%clk 0:03:00.9]} 6. e5 {[%clk 0:02:53.7]} 6... dxe5 {[%clk 0:03:00]}
7. dxe5 {[%clk 0:02:54.3]} 7... Nd5 {[%clk 0:03:00.3]} 8. O-O {[%clk 0:02:53.9]}
8... c6 {[%clk 0:03:00.5]} 9. Rd1 {[%clk 0:02:53.1]} 9... Be6 {[%clk 0:02:59.9]}
10. Ng5 {[%clk 0:02:52.2]} 10... Qc8 {[%clk 0:02:59.6]} 11. h3 {[%clk
0:02:10.5]} 11... Nc7 {[%clk 0:02:56.1]} 12. Nxe6 {[%clk 0:02:09]} 12... Nxe6
{[%clk 0:02:56]} 13. Nc3 {[%clk 0:02:09.2]} 13... b5 {[%clk 0:02:53.1]} 14. Bb3
{[%clk 0:02:08.6]} 14... Na6 {[%clk 0:02:49.6]} 15. f4 {[%clk 0:02:04.3]} 15...
Nac5 {[%clk 0:02:47.5]} 16. Be3 {[%clk 0:02:03.1]} 16... Nxb3 {[%clk 0:02:44.7]}
17. axb3 {[%clk 0:02:02.6]} 17... Qc7 {[%clk 0:02:42.4]} 18. Ra6 {[%clk
0:01:53]} 18... Bh6 {[%clk 0:02:03.4]} 19. g3 {[%clk 0:01:46.5]} 19... Qc8
{[%clk 0:01:59.6]} 20. Rda1 {[%clk 0:01:43.6]} 20... b4 {[%clk 0:01:24]} 21. Ne4
{[%clk 0:01:39.5]} 21... c5 {[%clk 0:01:19.7]} 22. Rxa7 {[%clk 0:01:36.2]} 22...
Rxa7 {[%clk 0:01:16.7]} 23. Rxa7 {[%clk 0:01:37.1]} 23... Nd4 {[%clk 0:01:11.6]}
24. Bxd4 {[%clk 0:00:46.7]} 24... cxd4 {[%clk 0:01:11.6]} 25. Rxe7 {[%clk
0:00:47.3]} 25... Qxh3 {[%clk 0:01:02.6]} 26. Qg2 {[%clk 0:00:44.7]} 26... Qc8
{[%clk 0:00:56.5]} 27. Nd6 {[%clk 0:00:36.5]} 27... Qc5 {[%clk 0:00:52.5]} 28.
Kh1 {[%clk 0:00:28.3]} 28... d3 {[%clk 0:00:25.1]} 29. cxd3 {[%clk 0:00:25.1]}
29... Qe3 {[%clk 0:00:25.2]} 30. Kh2 {[%clk 0:00:17.6]} 30... Qxd3 {[%clk
0:00:23]} 31. Kh3 {[%clk 0:00:09.9]} 31... Bxf4 {[%clk 0:00:21.3]} 32. Qf2
{[%clk 0:00:06.6]} 32... Bxe5 {[%clk 0:00:20]} 33. Nxf7 {[%clk 0:00:06.1]} 33...
Bg7 {[%clk 0:00:10.5]} 34. Kg2 {[%clk 0:00:01.7]} 34... Qd5+ {[%clk 0:00:09.9]}
35. Kh2 {[%clk 0:00:01.9]} 35... Rxf7 {[%clk 0:00:10.3]} 36. Re8+ {[%clk
0:00:02.2]} 36... Rf8 {[%clk 0:00:10.7]} 37. Rxf8+ {[%clk 0:00:02.1]} 37... Bxf8
{[%clk 0:00:10.9]} 38. Qe3 {[%clk 0:00:02.4]} 38... Bd6 {[%clk 0:00:08.8]} 39.
Qe8+ {[%clk 0:00:02.4]} 39... Kg7 {[%clk 0:00:09.3]} 40. Qd7+ {[%clk 0:00:02.5]}
40... Kh6 {[%clk 0:00:09.1]} 41. Qe8 {[%clk 0:00:02.1]} 41... Qh5+ {[%clk
0:00:05.2]} 42. Kg2 {[%clk 0:00:02.1]} 42... Qd5+ {[%clk 0:00:02.2]} 43. Kh2
{[%clk 0:00:02.1]} 43... Qd3 {[%clk 0:00:01.5]} 44. Qe6 {[%clk 0:00:01.3]} 1-0

[Event "Early-Titled-Tuesday-Blitz-June-18-2024"]
[Site "Chess.com"]
[Date "2024.06.18"]
[Round "8"]
[White "aeiiuu"]
[Black "HansOnTwitch"]
[Result "1-0"]
[WhiteElo "2638"]
[BlackElo "3130"]
[TimeControl "180+1"]
[EndTime "9:31:02 PDT"]
[Termination "aeiiuu won on time"]

1. e4 {[%clk 0:03:00.9]} 1... c6 {[%clk 0:03:00.4]} 2. d4 {[%clk 0:03:01]} 2...
d5 {[%clk 0:03:00.6]} 3. e5 {[%clk 0:03:01.7]} 3... Bf5 {[%clk 0:03:00.8]} 4. h4
{[%clk 0:03:01.9]} 4... a6 {[%clk 0:03:00.8]} 5. Bd3 {[%clk 0:03:01.5]} 5...
Bxd3 {[%clk 0:02:59.8]} 6. Qxd3 {[%clk 0:03:02.4]} 6... e6 {[%clk 0:03:00.6]} 7.
h5 {[%clk 0:03:02.4]} 7... c5 {[%clk 0:03:00]} 8. c3 {[%clk 0:03:01.8]} 8... Nc6
{[%clk 0:02:59.8]} 9. Nf3 {[%clk 0:03:02.1]} 9... h6 {[%clk 0:02:58.4]} 10. O-O
{[%clk 0:02:59.4]} 10... Qb6 {[%clk 0:02:58.7]} 11. Nbd2 {[%clk 0:02:57.3]}
11... cxd4 {[%clk 0:02:54.3]} 12. cxd4 {[%clk 0:02:53.5]} 12... Qb5 {[%clk
0:02:54.7]} 13. Qe3 {[%clk 0:02:49.4]} 13... Nb4 {[%clk 0:02:54]} 14. Ne1 {[%clk
0:02:45]} 14... Ne7 {[%clk 0:02:53]} 15. a3 {[%clk 0:02:41]} 15... Nf5 {[%clk
0:02:52.6]} 16. Qf4 {[%clk 0:02:40.6]} 16... Nc6 {[%clk 0:02:50.6]} 17. Ndf3
{[%clk 0:02:36.9]} 17... Be7 {[%clk 0:02:32.7]} 18. Nc2 {[%clk 0:02:16.3]} 18...
Qd3 {[%clk 0:02:22.7]} 19. Qd2 {[%clk 0:01:51.3]} 19... Qe4 {[%clk 0:02:20.7]}
20. Re1 {[%clk 0:01:36]} 20... Qg4 {[%clk 0:02:20.6]} 21. Qf4 {[%clk 0:01:01.9]}
21... Qxh5 {[%clk 0:02:16.2]} 22. Ne3 {[%clk 0:00:55.1]} 22... g5 {[%clk
0:02:11.7]} 23. Nxf5 {[%clk 0:00:55]} 23... Qg6 {[%clk 0:02:04.3]} 24. Nxe7
{[%clk 0:00:49]} 24... Kxe7 {[%clk 0:02:02.6]} 25. Qg3 {[%clk 0:00:47.8]} 25...
Rag8 {[%clk 0:01:54.2]} 26. Be3 {[%clk 0:00:48]} 26... Kd7 {[%clk 0:01:54.3]}
27. Rac1 {[%clk 0:00:47.7]} 27... Ne7 {[%clk 0:01:54.2]} 28. Nh2 {[%clk
0:00:42.9]} 28... h5 {[%clk 0:01:53.3]} 29. Qf3 {[%clk 0:00:42.7]} 29... g4
{[%clk 0:01:48.2]} 30. Qe2 {[%clk 0:00:41.9]} 30... h4 {[%clk 0:01:23.1]} 31.
Qc2 {[%clk 0:00:40.4]} 31... Nc6 {[%clk 0:01:17.6]} 32. Qxg6 {[%clk 0:00:40.3]}
32... Rxg6 {[%clk 0:01:18.5]} 33. g3 {[%clk 0:00:40.1]} 33... hxg3 {[%clk
0:01:07]} 34. fxg3 {[%clk 0:00:41]} 34... Ne7 {[%clk 0:01:07.7]} 35. Rcd1 {[%clk
0:00:37.2]} 35... Nf5 {[%clk 0:01:07.7]} 36. Bf4 {[%clk 0:00:37.7]} 36... Rc8
{[%clk 0:01:00.1]} 37. Re2 {[%clk 0:00:36.8]} 37... Rc4 {[%clk 0:00:58.7]} 38.
Red2 {[%clk 0:00:37.4]} 38... Rg8 {[%clk 0:00:48.2]} 39. Nf1 {[%clk 0:00:37.7]}
39... Ne7 {[%clk 0:00:43.1]} 40. Ne3 {[%clk 0:00:38]} 40... Ra4 {[%clk
0:00:41.2]} 41. Rc2 {[%clk 0:00:35.4]} 41... Nc6 {[%clk 0:00:40.6]} 42. Rcd2
{[%clk 0:00:34.2]} 42... Na7 {[%clk 0:00:29.3]} 43. Nc2 {[%clk 0:00:28.7]} 43...
Rc4 {[%clk 0:00:28.3]} 44. Kf2 {[%clk 0:00:29]} 44... Nb5 {[%clk 0:00:21.1]} 45.
Ne3 {[%clk 0:00:26.5]} 45... Ra4 {[%clk 0:00:18.6]} 46. Rd3 {[%clk 0:00:23.2]}
46... Rg6 {[%clk 0:00:14.2]} 47. R1d2 {[%clk 0:00:21.2]} 47... Rg8 {[%clk
0:00:13.4]} 48. Nc2 {[%clk 0:00:21.6]} 48... Rc4 {[%clk 0:00:13.2]} 49. b3
{[%clk 0:00:22.2]} 49... Rc6 {[%clk 0:00:12.6]} 50. Ne3 {[%clk 0:00:22.7]} 50...
Nc3 {[%clk 0:00:12.6]} 51. Rc2 {[%clk 0:00:19.9]} 51... Ne4+ {[%clk 0:00:12.7]}
52. Kg2 {[%clk 0:00:20.7]} 52... a5 {[%clk 0:00:05.7]} 53. Rd1 {[%clk
0:00:19.6]} 53... Rxc2+ {[%clk 0:00:05.2]} 54. Nxc2 {[%clk 0:00:20.5]} 54... Rc8
{[%clk 0:00:05.3]} 55. Ne3 {[%clk 0:00:21.1]} 55... Rc3 {[%clk 0:00:05.9]} 56.
Rb1 {[%clk 0:00:18.9]} 56... b5 {[%clk 0:00:01.2]} 57. Nxg4 {[%clk 0:00:18.7]}
57... Ke7 {[%clk 0:00:01]} 58. Nf2 {[%clk 0:00:16.7]} 1-0

[Event "Early-Titled-Tuesday-Blitz-June-18-2024"]
[Site "Chess.com"]
[Date "2024.06.18"]
[Round "8"]
[White "JunjiCol"]
[Black "GlavkonVVS"]
[Result "0-1"]
[WhiteElo "2361"]
[BlackElo "2531"]
[TimeControl "180+1"]
[EndTime "9:31:06 PDT"]
[Termination "GlavkonVVS won by resignation"]

1. e4 {[%clk 0:02:52]} 1... c5 {[%clk 0:02:57.8]} 2. Nf3 {[%clk 0:02:48]} 2...
d6 {[%clk 0:02:57.5]} 3. d4 {[%clk 0:02:45.6]} 3... cxd4 {[%clk 0:02:57.7]} 4.
Nxd4 {[%clk 0:02:46.5]} 4... Nf6 {[%clk 0:02:57.9]} 5. Nc3 {[%clk 0:02:46.5]}
5... a6 {[%clk 0:02:58.1]} 6. h3 {[%clk 0:02:45.5]} 6... e5 {[%clk 0:02:58.5]}
7. Nf3 {[%clk 0:02:45.5]} 7... Be6 {[%clk 0:02:57.4]} 8. g4 {[%clk 0:02:45.5]}
8... h5 {[%clk 0:02:53.3]} 9. g5 {[%clk 0:02:42.3]} 9... Nfd7 {[%clk 0:02:53.3]}
10. Nd5 {[%clk 0:02:40.5]} 10... Nb6 {[%clk 0:02:46.1]} 11. c4 {[%clk 0:02:38]}
11... N8d7 {[%clk 0:02:42.8]} 12. Be3 {[%clk 0:02:37.8]} 12... Rc8 {[%clk
0:02:38.2]} 13. Qb3 {[%clk 0:02:37.4]} 13... Bxd5 {[%clk 0:02:36.4]} 14. cxd5
{[%clk 0:02:37.5]} 14... Nc5 {[%clk 0:02:32.7]} 15. Bxc5 {[%clk 0:02:36.2]}
15... Rxc5 {[%clk 0:02:32.7]} 16. h4 {[%clk 0:02:29.9]} 16... Be7 {[%clk
0:02:31.9]} 17. Be2 {[%clk 0:02:24.5]} 17... Qc7 {[%clk 0:02:30.6]} 18. O-O
{[%clk 0:02:23]} 18... O-O {[%clk 0:02:29.5]} 19. Qe3 {[%clk 0:02:21.5]} 19...
Rc8 {[%clk 0:02:26.9]} 20. Nd2 {[%clk 0:02:14.1]} 20... g6 {[%clk 0:02:25.7]}
21. Nb3 {[%clk 0:02:12.7]} 21... Rc2 {[%clk 0:02:21.6]} 22. Rac1 {[%clk
0:02:12.7]} 22... Bd8 {[%clk 0:01:58.4]} 23. Bd3 {[%clk 0:02:05.4]} 23... Rxc1
{[%clk 0:01:56.1]} 24. Rxc1 {[%clk 0:02:05.2]} 24... Qd7 {[%clk 0:01:56.1]} 25.
Be2 {[%clk 0:02:04.9]} 25... Rxc1+ {[%clk 0:01:51.5]} 26. Nxc1 {[%clk
0:02:04.2]} 26... Na4 {[%clk 0:01:50.1]} 27. b4 {[%clk 0:01:57.8]} 27... Bb6
{[%clk 0:01:46]} 28. Qb3 {[%clk 0:01:55]} 28... Bd4 {[%clk 0:01:41.1]} 29. Kg2
{[%clk 0:01:45.4]} 29... Nc3 {[%clk 0:01:35.5]} 30. Bf3 {[%clk 0:01:44.6]} 30...
Nxe4 {[%clk 0:01:31.7]} 31. Ne2 {[%clk 0:01:39.6]} 31... Nd2 {[%clk 0:01:19.2]}
32. Qd3 {[%clk 0:01:33.6]} 32... Nxf3 {[%clk 0:01:17.3]} 33. Qxf3 {[%clk
0:01:32.2]} 33... Bb6 {[%clk 0:01:13]} 34. Ng3 {[%clk 0:01:29.8]} 34... Bd8
{[%clk 0:01:08.4]} 35. Ne4 {[%clk 0:01:28.2]} 35... Be7 {[%clk 0:01:07.3]} 36.
a3 {[%clk 0:01:22.8]} 36... Kg7 {[%clk 0:01:06.7]} 37. Kh2 {[%clk 0:01:09.2]}
37... Qf5 {[%clk 0:01:05.8]} 38. Qxf5 {[%clk 0:00:59.1]} 38... gxf5 {[%clk
0:01:05.2]} 39. Nd2 {[%clk 0:00:58.5]} 39... f6 {[%clk 0:01:03.4]} 40. gxf6+
{[%clk 0:00:53.7]} 40... Kxf6 {[%clk 0:01:02.8]} 41. Nc4 {[%clk 0:00:53.7]}
41... Kg6 {[%clk 0:00:57.6]} 42. Kh3 {[%clk 0:00:51.8]} 42... e4 {[%clk
0:00:55.5]} 43. Na5 {[%clk 0:00:50.4]} 43... b5 {[%clk 0:00:51.8]} 44. Nc6
{[%clk 0:00:50]} 44... Bf6 {[%clk 0:00:49.4]} 45. Nb8 {[%clk 0:00:48.2]} 45...
Bb2 {[%clk 0:00:49]} 46. Nxa6 {[%clk 0:00:46.9]} 46... Bxa3 {[%clk 0:00:49.1]}
47. Nc7 {[%clk 0:00:42]} 47... Bxb4 {[%clk 0:00:48]} 48. Nxb5 {[%clk 0:00:42.3]}
48... f4 {[%clk 0:00:46.3]} 49. Nd4 {[%clk 0:00:38]} 49... Kf6 {[%clk
0:00:41.6]} 50. Kg2 {[%clk 0:00:37.3]} 50... Bc5 {[%clk 0:00:40.4]} 51. Nc6
{[%clk 0:00:36.1]} 51... Kf5 {[%clk 0:00:39.6]} 52. Nb8 {[%clk 0:00:23.9]} 52...
Kg4 {[%clk 0:00:38]} 53. Nd7 {[%clk 0:00:24.1]} 53... Bd4 {[%clk 0:00:37.2]} 54.
Nf8 {[%clk 0:00:20.6]} 54... f3+ {[%clk 0:00:35.6]} 55. Kf1 {[%clk 0:00:19.2]}
55... Kxh4 {[%clk 0:00:36.1]} 56. Ne6 {[%clk 0:00:19.9]} 56... Be5 {[%clk
0:00:34.1]} 57. Nf8 {[%clk 0:00:19.5]} 57... Kg4 {[%clk 0:00:33.1]} 58. Nd7
{[%clk 0:00:19.6]} 58... Bd4 {[%clk 0:00:32.2]} 59. Nb8 {[%clk 0:00:18.6]} 59...
h4 {[%clk 0:00:32.1]} 60. Nc6 {[%clk 0:00:18.8]} 60... Bc5 {[%clk 0:00:31.8]}
61. Kg1 {[%clk 0:00:18.2]} 61... h3 {[%clk 0:00:31.6]} 62. Ne7 {[%clk
0:00:18.2]} 62... h2+ {[%clk 0:00:30.2]} 63. Kxh2 {[%clk 0:00:17.8]} 63... Bxf2
{[%clk 0:00:30.8]} 64. Ng8 {[%clk 0:00:17.8]} 64... Bg3+ {[%clk 0:00:30.7]} 65.
Kg1 {[%clk 0:00:17.7]} 65... Be5 {[%clk 0:00:30.6]} 66. Nh6+ {[%clk 0:00:16.5]}
66... Kf4 {[%clk 0:00:30.1]} 67. Nf7 {[%clk 0:00:16.3]} 67... e3 {[%clk
0:00:29.3]} 68. Kf1 {[%clk 0:00:16.6]} 68... e2+ {[%clk 0:00:28.5]} 69. Kf2
{[%clk 0:00:16.1]} 69... Bd4+ {[%clk 0:00:28.7]} 0-1

[Event "Early-Titled-Tuesday-Blitz-June-18-2024"]
[Site "Chess.com"]
[Date "2024.06.18"]
[Round "8"]
[White "DmitryMaximov"]
[Black "DenLaz"]
[Result "0-1"]
[WhiteElo "2780"]
[BlackElo "3081"]
[TimeControl "180+1"]
[EndTime "9:31:09 PDT"]
[Termination "DenLaz won by checkmate"]

1. e4 {[%clk 0:03:00.9]} 1... c5 {[%clk 0:03:00]} 2. Nf3 {[%clk 0:03:01]} 2...
e6 {[%clk 0:03:00.7]} 3. c3 {[%clk 0:03:01.2]} 3... d5 {[%clk 0:03:00.7]} 4. e5
{[%clk 0:03:01.3]} 4... d4 {[%clk 0:03:01.3]} 5. g3 {[%clk 0:03:01.4]} 5... Nc6
{[%clk 0:02:59.3]} 6. Bg2 {[%clk 0:03:01.2]} 6... d3 {[%clk 0:02:59.9]} 7. O-O
{[%clk 0:03:00.8]} 7... Rb8 {[%clk 0:03:00.4]} 8. Re1 {[%clk 0:03:00.7]} 8...
Nge7 {[%clk 0:02:49.2]} 9. a4 {[%clk 0:02:59.7]} 9... a6 {[%clk 0:02:48.1]} 10.
b4 {[%clk 0:02:50.1]} 10... cxb4 {[%clk 0:02:45.7]} 11. cxb4 {[%clk 0:02:50.5]}
11... Nxb4 {[%clk 0:02:46.3]} 12. Na3 {[%clk 0:02:50.9]} 12... Nec6 {[%clk
0:02:45.7]} 13. Bb2 {[%clk 0:02:50.3]} 13... Be7 {[%clk 0:02:45.9]} 14. Re4
{[%clk 0:02:49.7]} 14... O-O {[%clk 0:02:42.7]} 15. Rc1 {[%clk 0:02:47.9]} 15...
b5 {[%clk 0:02:33.6]} 16. axb5 {[%clk 0:02:46.4]} 16... axb5 {[%clk 0:02:34.5]}
17. h4 {[%clk 0:02:46]} 17... h6 {[%clk 0:02:23.3]} 18. h5 {[%clk 0:02:45.4]}
18... Bd7 {[%clk 0:02:22.7]} 19. Rg4 {[%clk 0:02:44.9]} 19... Nd5 {[%clk
0:02:19.8]} 20. Qb3 {[%clk 0:02:39.7]} 20... Na5 {[%clk 0:01:36.9]} 21. Qxd3
{[%clk 0:02:31.3]} 21... b4 {[%clk 0:01:36.2]} 22. Nb1 {[%clk 0:02:11.6]} 22...
Kh8 {[%clk 0:01:35.6]} 23. Nd4 {[%clk 0:02:03.8]} 23... Nb6 {[%clk 0:01:32.3]}
24. Qe2 {[%clk 0:01:55.8]} 24... Rg8 {[%clk 0:01:30.2]} 25. d3 {[%clk
0:01:55.2]} 25... Na4 {[%clk 0:01:29.4]} 26. Re1 {[%clk 0:01:45]} 26... Nxb2
{[%clk 0:01:27.2]} 27. Qxb2 {[%clk 0:01:44.8]} 27... b3 {[%clk 0:01:27.7]} 28.
Nd2 {[%clk 0:01:41.5]} 28... Bb4 {[%clk 0:01:26.9]} 29. Ra1 {[%clk 0:01:40.2]}
29... Qc7 {[%clk 0:01:26.5]} 30. Ne4 {[%clk 0:01:37.2]} 30... Qxe5 {[%clk
0:01:21.1]} 31. f4 {[%clk 0:01:32.1]} 31... Qc7 {[%clk 0:01:15.6]} 32. Rc1
{[%clk 0:01:28.1]} 32... Qa7 {[%clk 0:01:15.3]} 33. Kh2 {[%clk 0:01:27.7]} 33...
e5 {[%clk 0:00:37.6]} 34. Nf3 {[%clk 0:00:39.9]} 34... Bxg4 {[%clk 0:00:36.7]}
35. Nxe5 {[%clk 0:00:40.4]} 35... Bf5 {[%clk 0:00:36.7]} 36. g4 {[%clk
0:00:37.1]} 36... Bxe4 {[%clk 0:00:33.2]} 37. Bxe4 {[%clk 0:00:38]} 37... Bd6
{[%clk 0:00:33.2]} 38. Ra1 {[%clk 0:00:33]} 38... Bxe5 {[%clk 0:00:32.5]} 39.
Qxe5 {[%clk 0:00:32.8]} 39... b2 {[%clk 0:00:26.6]} 40. Qf5 {[%clk 0:00:25]}
40... g6 {[%clk 0:00:27]} 41. Qf6+ {[%clk 0:00:24]} 41... Rg7 {[%clk 0:00:27.2]}
42. Rb1 {[%clk 0:00:23.6]} 42... Qb6 {[%clk 0:00:24.2]} 43. Qe5 {[%clk
0:00:18.5]} 43... Nc6 {[%clk 0:00:23.4]} 44. Bxc6 {[%clk 0:00:18.2]} 44... gxh5
{[%clk 0:00:16.5]} 45. g5 {[%clk 0:00:15.2]} 45... hxg5 {[%clk 0:00:16.4]} 46.
Bg2 {[%clk 0:00:13.9]} 46... gxf4 {[%clk 0:00:12.7]} 47. d4 {[%clk 0:00:13.4]}
47... Rg8 {[%clk 0:00:09.5]} 48. Be4 {[%clk 0:00:12]} 48... Qh6 {[%clk
0:00:06.8]} 49. Rxb2 {[%clk 0:00:12]} 49... f3 {[%clk 0:00:06.3]} 50. Rb6 {[%clk
0:00:10.3]} 50... Qg5 {[%clk 0:00:03.3]} 51. Qxg5 {[%clk 0:00:04.3]} 51... Rxg5
{[%clk 0:00:04.2]} 52. Bxf3 {[%clk 0:00:05]} 52... Rf5 {[%clk 0:00:04.9]} 53.
Be4 {[%clk 0:00:04.5]} 53... Rf4 {[%clk 0:00:05.4]} 54. Bd3 {[%clk 0:00:03.1]}
54... Rh4# {[%clk 0:00:05.7]} 0-1